lending/lending_fUSD_20240621
["ID","MTS","AMOUNT","RATE_DAILY","PERIOD"]
[330052626,1718973059653,-500.0,0.00021917,4]
[330052627,1718973059663,-523.91,0.00021917,4]
[330052628,1718973059672,-500.0,0.00021917,4]
[330052629,1718973059682,-500.0,0.00021917,4]
[330052630,1718973059692,-963.12,0.00021917,4]
[330052631,1718973059701,-500.0,0.00021917,4]
[330052632,1718973059711,-642.53161484,0.00021917,4]
[330052633,1718973059721,-500.0,0.00021917,4]
[330052634,1718973059730,-573.72,0.00021917,4]
[330052635,1718973059740,-500.0,0.00021917,4]
[330052636,1718973059750,-3318.44,0.00021917,4]
[330052637,1718973059760,-1235.03,0.00021917,4]
[330052638,1718973059769,-1728.01,0.00021917,4]
[330052639,1718973059779,-5655.85,0.00021917,4]
[330052640,1718973059788,-500.0,0.00021917,4]
[330052641,1718973059798,-500.0,0.00021917,4]
[330052642,1718973059807,-500.0,0.00021917,4]
[330052643,1718973059818,-500.0,0.00021917,4]
[330052644,1718973059828,-1315.22,0.00021917,4]
[330052645,1718973059838,-3110.37,0.00021917,4]
[330052646,1718973059848,-9208.26,0.00021917,4]
[330052647,1718973059858,-940.25,0.00021917,4]
[330052648,1718973059868,-987.55,0.00021917,4]
[330052649,1718973059878,-500.0,0.00021917,4]
[330052650,1718973059887,-573.45199314,0.00021917,4]
[330052651,1718973059896,-7126.8,0.00021917,4]
[330052652,1718973059906,-19451.71,0.00021917,4]
[330052653,1718973059916,-2261.31,0.00021917,4]
[330052654,1718973059926,-500.0,0.00021917,4]
[330052655,1718973059936,-500.0,0.00021917,4]
[330052656,1718973059945,-500.0,0.00021917,4]
[330052657,1718973059956,-2055.98,0.00021917,4]
[330052658,1718973059967,-500.0,0.00021917,4]
[330052659,1718973059977,-611.07,0.00021917,4]
[330052660,1718973059986,-500.0,0.00021917,4]
[330052661,1718973059996,-763.62,0.00021917,4]
[330052662,1718973060005,-4795.5,0.00021917,4]
[330052663,1718973060015,-500.0,0.00021917,4]
[330052664,1718973060025,-2328.69,0.00021917,4]
[330052665,1718973060035,-34751.57,0.00021917,4]
[330052666,1718973060044,-3330.89,0.00021917,4]
[330052667,1718973060054,-500.0,0.00021917,4]
[330052668,1718973060064,-1376.866014,0.00021917,2]
[330052669,1718973060074,-1376.866014,0.00021917,2]
[330052670,1718973060084,-500.0,0.00021917,4]
[330052671,1718973060093,-1376.866014,0.00021917,2]
[330052672,1718973060103,-2342.9,0.00021917,4]
[330052673,1718973060113,-1376.866014,0.00021917,2]
[330052674,1718973060122,-151.0,0.00021917,2]
[330052675,1718973060133,-1376.866014,0.00021917,2]
[330052676,1718973060142,-151.0,0.00021917,2]
[330052677,1718973060152,-1376.866014,0.00021917,2]
[330052678,1718973060162,-151.0,0.00021917,2]
[330052679,1718973060172,-577.97,0.00021917,4]
[330052680,1718973060182,-1376.866014,0.00021917,2]
[330052681,1718973060193,-151.0,0.00021917,2]
[330052682,1718973060203,-1376.866014,0.00021917,2]
[330052683,1718973060212,-151.0,0.00021917,2]
[330052684,1718973060221,-1376.866014,0.00021917,2]
[330052685,1718973060231,-500.0,0.00021917,4]
[330052686,1718973060240,-151.0,0.00021917,2]
[330052687,1718973060250,-500.0,0.00021917,4]
[330052688,1718973060259,-1376.866014,0.00021917,2]
[330052689,1718973060270,-151.0,0.00021917,2]
[330052690,1718973060280,-500.0,0.00021917,4]
[330052691,1718973060289,-1376.866014,0.00021917,2]
[330052692,1718973060299,-657.46,0.00021917,4]
[330052693,1718973060310,-1376.866014,0.00021917,2]
[330052694,1718973060319,-1376.866014,0.00021917,2]
[330052695,1718973060329,-1376.866014,0.00021917,2]
[330052696,1718973060339,-1376.866014,0.00021917,2]
[330052697,1718973060349,-500.0,0.00021917,4]
[330052698,1718973060365,-1376.866014,0.00021917,2]
[330052699,1718973060374,-1376.866014,0.00021917,2]
[330052700,1718973060385,-1376.866014,0.00021917,2]
[330052701,1718973060395,-1405.08,0.00021917,4]
[330052702,1718973060405,-1000.44,0.00021917,4]
[330052703,1718973060415,-1376.866014,0.00021917,2]
[330052704,1718973060425,-324.73541783,0.00021917,4]
[330052705,1718973060435,-1376.866014,0.00021917,2]
[330052706,1718973060444,-2526.55,0.00021917,4]
[330052707,1718973060454,-849.46,0.00021917,4]
[330052708,1718973060464,-1109.18,0.00021917,4]
[330052709,1718973060473,-9583.17,0.00021917,4]
[330052710,1718973060483,-500.0,0.00021917,4]
[330052711,1718973060493,-500.0,0.00021917,4]
[330052712,1718973060503,-500.0,0.00021917,4]
[330052713,1718973060512,-895.87,0.00021917,4]
[330052714,1718973060522,-2254.65,0.00021917,4]
[330052715,1718973060533,-824.6,0.00021917,4]
[330052716,1718973060542,-500.0,0.00021917,4]
[330052717,1718973060552,-760.9,0.00021917,4]
[330052718,1718973060562,-633.03,0.00021917,4]
[330052719,1718973060571,-500.0,0.00021917,4]
[330052720,1718973060581,-1615.67,0.00021917,4]
[330052721,1718973060591,-1368.32,0.00021917,4]
[330052722,1718973060601,-515.92978657,0.00021917,4]
[330052723,1718973060610,-500.0,0.00021917,4]
[330052724,1718973060619,-2998.26,0.00021917,4]
[330052725,1718973060630,-500.0,0.00021917,4]
[330052726,1718973060640,-736.81,0.00021917,4]
[330052727,1718973060649,-1193.6,0.00021917,4]
[330052728,1718973060658,-500.0,0.00021917,4]
[330052729,1718973060667,-500.0,0.00021917,4]
[330052730,1718973060677,-500.0,0.00021917,4]
[330052731,1718973060686,-13625.03,0.00021917,4]
[330052732,1718973060696,-500.0,0.00021917,4]
[330052733,1718973060706,-763.98,0.00021917,4]
[330052734,1718973060716,-1391.92,0.00021917,4]
[330052735,1718973060726,-500.0,0.00021917,4]
[330052736,1718973060737,-1399.65,0.00021917,4]
[330052737,1718973060747,-859.81,0.00021917,4]
[330052738,1718973060756,-828.58,0.00021917,4]
[330052739,1718973060766,-2032.93,0.00021917,4]
[330052740,1718973060775,-4140.12,0.00021917,4]
[330052741,1718973060785,-9242.19,0.00021917,4]
[330052742,1718973060795,-500.0,0.00021917,4]
[330052743,1718973060805,-994.01,0.00021917,4]
[330052744,1718973060815,-500.0,0.00021917,4]
[330052745,1718973060826,-4610.23,0.00021917,4]
[330052746,1718973060835,-6035.12,0.00021917,4]
[330052747,1718973060845,-1667.371776,0.00021917,2]
[330052748,1718973060855,-1667.371776,0.00021917,2]
[330052749,1718973060865,-532.05,0.00021917,4]
[330052750,1718973060876,-537.14,0.00021917,4]
[330052751,1718973060887,-1667.371776,0.00021917,2]
[330052752,1718973060897,-151.0,0.00021917,2]
[330052753,1718973060907,-1667.371776,0.00021917,2]
[330052754,1718973060916,-151.978023,0.00021917,2]
[330052755,1718973060926,-1667.371776,0.00021917,2]
[330052756,1718973060935,-500.0,0.00021917,4]
[330052757,1718973060944,-173.03996443,0.00021917,4]
[330052758,1718973060954,-1667.371776,0.00021917,2]
[330052759,1718973060964,-1667.371776,0.00021917,2]
[330052760,1718973060973,-1667.371776,0.00021917,2]
[330052761,1718973060982,-1667.371776,0.00021917,2]
[330052762,1718973060991,-976.14,0.00021917,4]
[330052763,1718973061000,-631.63374392,0.00021917,4]
[330052764,1718973061010,-773.03,0.00021917,4]
[330052765,1718973061020,-500.0,0.00021917,4]
[330052766,1718973061029,-1667.371776,0.00021917,2]
[330052767,1718973061038,-1375.23,0.00021917,4]
[330052768,1718973061049,-1667.371776,0.00021917,2]
[330052769,1718973061059,-1722.7,0.00021917,4]
[330052770,1718973061068,-500.0,0.00021917,4]
[330052771,1718973061078,-4729.79,0.00021917,4]
[330052772,1718973061088,-1667.371776,0.00021917,2]
[330052773,1718973061097,-3024.03,0.00021917,4]
[330052774,1718973061107,-514.67927729,0.00021917,4]
[330052775,1718973061116,-1667.371776,0.00021917,2]
[330052776,1718973061126,-2802.47,0.00021917,4]
[330052777,1718973061137,-1667.371776,0.00021917,2]
[330052778,1718973061146,-1667.371776,0.00021917,2]
[330052779,1718973061155,-679.98,0.00021917,4]
[330052780,1718973061165,-1667.371776,0.00021917,2]
[330052781,1718973061175,-1667.371776,0.00021917,2]
[330052782,1718973061185,-1667.371776,0.00021917,2]
[330052783,1718973061195,-1634.91,0.00021917,4]
[330052784,1718973061205,-1667.371776,0.00021917,2]
[330052785,1718973061215,-42558.14,0.00021917,4]
[330052786,1718973061224,-1667.371773,0.00021917,2]
[330052787,1718973061234,-10375.1,0.00021917,4]
[330052788,1718973061243,-500.0,0.00021917,4]
[330052789,1718973061252,-500.0,0.00021917,4]
[330052790,1718973061262,-1127.67,0.00021917,4]
[330052791,1718973061272,-500.0,0.00021917,4]
[330052792,1718973061281,-659.26,0.00021917,4]
[330052793,1718973061290,-899.89,0.00021917,4]
[330052794,1718973061300,-843.22,0.00021917,4]
[330052795,1718973061310,-500.0,0.00021917,4]
[330052796,1718973061319,-500.0,0.00021917,4]
[330052797,1718973061329,-500.0,0.00021917,4]
[330052798,1718973061339,-558.05,0.00021917,4]
[330052799,1718973061620,-3503.55,0.00021917,4]
[330052800,1718973061632,-558.05,0.00021917,4]
[330052801,1718973061642,-500.0,0.00021917,4]
[330052802,1718973061652,-500.0,0.00021917,4]
[330052803,1718973061661,-558.05,0.00021917,4]
[330052804,1718973061675,-558.05,0.00021917,4]
[330052805,1718973061684,-558.05,0.00021917,4]
[330052806,1718973061694,-500.0,0.00021917,4]
[330052807,1718973061703,-558.05,0.00021917,4]
[330052808,1718973061713,-558.05,0.00021917,4]
[330052809,1718973061722,-558.05,0.00021917,4]
[330052810,1718973061731,-558.05,0.00021917,4]
[330052811,1718973061740,-558.05,0.00021917,4]
[330052812,1718973061750,-2269.84,0.00021917,4]
[330052813,1718973061759,-1118.16,0.00021917,4]
[330052814,1718973061768,-558.05,0.00021917,4]
[330052815,1718973061777,-5767.85,0.00021917,4]
[330052816,1718973061786,-500.0,0.00021917,4]
[330052817,1718973061796,-944.72,0.00021917,4]
[330052818,1718973061805,-1016.9,0.00021917,4]
[330052819,1718973061814,-1553.7,0.00021917,4]
[330052820,1718973061823,-1287.76,0.00021917,4]
[330052821,1718973061833,-500.0,0.00021917,4]
[330052822,1718973061842,-4029.23,0.00021917,4]
[330052823,1718973061851,-948.91,0.00021917,4]
[330052824,1718973061861,-8061.68,0.00021917,4]
[330052825,1718973061870,-645.64,0.00021917,4]
[330052826,1718973061882,-500.0,0.00021917,4]
[330052827,1718973061891,-753.5,0.00021917,4]
[330052828,1718973061900,-151.0,0.00021917,2]
[330052829,1718973061909,-500.0,0.00021917,4]
[330052830,1718973061918,-821.86,0.00021917,4]
[330052831,1718973061927,-1082.29,0.00021917,4]
[330052832,1718973061936,-2618.75,0.00021917,4]
[330052833,1718973061946,-500.0,0.00021917,4]
[330052834,1718973061957,-2240.68,0.00021917,4]
[330052835,1718973061967,-6524.2,0.00021917,4]
[330052836,1718973061977,-520.64536295,0.00021917,4]
[330052837,1718973061986,-500.0,0.00021917,4]
[330052838,1718973061996,-500.0,0.00021917,4]
[330052839,1718973062007,-10229.78,0.00021917,4]
[330052840,1718973062016,-506.51970809,0.00021917,4]
[330052841,1718973062026,-2672.77,0.00021917,4]
[330052842,1718973062036,-500.0,0.00021917,4]
[330052843,1718973062046,-1251.39,0.00021917,4]
[330052844,1718973062055,-548.32,0.00021917,4]
[330052845,1718973062065,-500.0,0.00021917,4]
[330052846,1718973062074,-2198.52,0.00021917,4]
[330052847,1718973062084,-501.72,0.00021917,4]
[330052848,1718973062093,-3743.45,0.00021917,4]
[330052849,1718973062103,-2365.98,0.00021917,4]
[330052850,1718973062113,-517.75,0.00021917,4]
[330052851,1718973062123,-2448.82,0.00021917,4]
[330052852,1718973062137,-323.25106368,0.00021917,4]
[330052853,1718973062147,-6165.62,0.00021917,4]
[330052854,1718973062157,-14455.54,0.00021917,4]
[330052855,1718973062166,-500.0,0.00021917,4]
[330052856,1718973062176,-4788.49,0.00021917,4]
[330052857,1718973062186,-3477.14,0.00021917,4]
[330052858,1718973062195,-500.0,0.00021917,4]
[330052859,1718973062205,-20294.02,0.00021917,4]
[330052860,1718973062214,-500.0,0.00021917,4]
[330052861,1718973062224,-500.0,0.00021917,4]
[330052862,1718973062234,-500.0,0.00021917,4]
[330052863,1718973062244,-1172.3,0.00021917,4]
[330052864,1718973062254,-500.0,0.00021917,4]
[330052865,1718973062264,-500.0,0.00021917,4]
[330052866,1718973062274,-2444.9,0.00021917,4]
[330052867,1718973062283,-500.0,0.00021917,4]
[330052868,1718973062293,-500.0,0.00021917,4]
[330052869,1718973062303,-642.11,0.00021917,4]
[330052870,1718973062312,-543.08636142,0.00021917,4]
[330052871,1718973062321,-661.01,0.00021917,4]
[330052872,1718973062331,-270.577061,0.00021917,2]
[330052873,1718973062340,-585.96543141,0.00021917,4]
[330052874,1718973062353,-271.371078,0.00021917,2]
[330052875,1718973062365,-271.371078,0.00021917,2]
[330052876,1718973062375,-271.371078,0.00021917,2]
[330052877,1718973062387,-500.0,0.00021917,4]
[330052878,1718973062397,-500.0,0.00021917,4]
[330052879,1718973062406,-4260.44,0.00021917,4]
[330052880,1718973062416,-500.0,0.00021917,4]
[330052881,1718973062425,-1028.41,0.00021917,4]
[330052882,1718973062440,-607.61,0.00021917,4]
[330052883,1718973062450,-271.371078,0.00021917,2]
[330052884,1718973062460,-271.371078,0.00021917,2]
[330052885,1718973062470,-504.65,0.00021917,4]
[330052886,1718973062481,-1589.93,0.00021917,4]
[330052887,1718973062491,-500.0,0.00021917,4]
[330052888,1718973062501,-503.44724033,0.00021917,4]
[330052889,1718973062511,-500.0,0.00021917,4]
[330052890,1718973062521,-500.0,0.00021917,4]
[330052891,1718973062530,-568.18,0.00021917,4]
[330052892,1718973062540,-500.0,0.00021917,4]
[330052893,1718973062549,-271.371078,0.00021917,2]
[330052894,1718973062559,-271.371078,0.00021917,2]
[330052895,1718973062568,-500.0,0.00021917,4]
[330052896,1718973062577,-535.0,0.00021917,4]
[330052897,1718973062586,-500.0,0.00021917,4]
[330052898,1718973062596,-776.26,0.00021917,4]
[330052899,1718973062606,-500.0,0.00021917,4]
[330052900,1718973062615,-271.371078,0.00021917,2]
[330052901,1718973062624,-271.371078,0.00021917,2]
[330052902,1718973062636,-271.371078,0.00021917,2]
[330052903,1718973062645,-271.371078,0.00021917,2]
[330052904,1718973062654,-500.0,0.00021917,4]
[330052905,1718973062664,-271.371078,0.00021917,2]
[330052906,1718973062674,-500.0,0.00021917,4]
[330052907,1718973062684,-271.371078,0.00021917,2]
[330052908,1718973062694,-271.371078,0.00021917,2]
[330052909,1718973062704,-3142.51,0.00021917,4]
[330052910,1718973062713,-500.0,0.00021917,4]
[330052911,1718973062722,-271.371078,0.00021917,2]
[330052912,1718973062732,-271.371078,0.00021917,2]
[330052913,1718973062741,-271.371078,0.00021917,2]
[330052914,1718973062751,-271.371078,0.00021917,2]
[330052915,1718973062760,-7651.37,0.00021917,4]
[330052916,1718973062769,-1483.94,0.00021917,4]
[330052917,1718973062778,-500.0,0.00021917,2]
[330052918,1718973062787,-1022.68,0.00021917,4]
[330052919,1718973062796,-938.92,0.00021917,4]
[330052920,1718973062805,-500.0,0.00021917,4]
[330052921,1718973062815,-659.06,0.00021917,4]
[330052922,1718973062824,-3324.75,0.00021917,4]
[330052923,1718973062834,-3440.18,0.00021917,4]
[330052924,1718973062843,-500.0,0.00021917,4]
[330052925,1718973062853,-509.77,0.00021917,4]
[330052926,1718973062863,-2237.29,0.00021917,4]
[330052927,1718973062873,-523.5953079,0.00021917,4]
[330052928,1718973062885,-150.41022838,0.00021917,4]
[330052929,1718973062894,-681.53,0.00021917,4]
[330052930,1718973062903,-52915.71839057,0.00021917,2]
[330052931,1718973062913,-512.35840364,0.00021917,4]
[330052932,1718973062922,-500.0,0.00021917,2]
[330052933,1718973062932,-500.0,0.00021917,4]
[330052934,1718973062941,-921.28,0.00021917,4]
[330052935,1718973062951,-646.81,0.00021917,4]
[330052936,1718973062960,-1282.2,0.00021917,4]
[330052937,1718973062970,-500.0,0.00021917,4]
[330052938,1718973062980,-500.0,0.00021917,4]
[330052939,1718973062989,-3118.0,0.00021917,4]
[330052940,1718973062998,-500.0,0.00021917,4]
[330052941,1718973063008,-674.05,0.00021917,4]
[330052942,1718973063017,-500.0,0.00021917,4]
[330052943,1718973063028,-375.70637344,0.00021917,4]
[330052944,1718973063039,-500.0,0.00021917,4]
[330052945,1718973063049,-500.0,0.00021917,4]
[330052946,1718973063059,-7977.64,0.00021917,4]
[330052947,1718973063070,-500.26452978,0.00021917,4]
[330052948,1718973063080,-595.09,0.00021917,4]
[330052949,1718973063090,-500.0,0.00021917,4]
[330052950,1718973063099,-1623.14,0.00021917,4]
[330052951,1718973063108,-2258.89,0.00021917,4]
[330052952,1718973063118,-500.0,0.00021917,4]
[330052953,1718973063128,-158.95488193,0.00021917,2]
[330052954,1718973063143,-500.0,0.00021917,4]
[330052955,1718973063153,-1390.34,0.00021917,4]
[330052956,1718973063162,-626.67,0.00021917,4]
[330052957,1718973063172,-159.95430653,0.00021917,2]
[330052958,1718973063182,-7898.86,0.00021917,4]
[330052959,1718973063192,-21625.56,0.00021917,4]
[330052960,1718973063202,-1603.19,0.00021917,4]
[330052961,1718973063212,-500.0,0.00021917,4]
[330052962,1718973063223,-568.58157254,0.00021917,4]
[330052963,1718973063233,-660.64,0.00021917,4]
[330052964,1718973063244,-1546.07,0.00021917,4]
[330052965,1718973063255,-500.0,0.00021917,4]
[330052966,1718973063266,-500.0,0.00021917,4]
[330052967,1718973063278,-2103.36,0.00021917,4]
[330052968,1718973063289,-2503.5,0.00021917,4]
[330052969,1718973063300,-1502.56,0.00021917,4]
[330052970,1718973063310,-957.42,0.00021917,4]
[330052971,1718973063321,-932.91,0.00021917,4]
[330052972,1718973063331,-989.38,0.00021917,4]
[330052973,1718973063341,-2903.05,0.00021917,4]
[330052974,1718973063352,-2316.39,0.00021917,4]
[330052975,1718973063366,-500.0,0.00021917,4]
[330052976,1718973063376,-151.0,0.00021917,2]
[330052977,1718973063392,-1170.36,0.00021917,4]
[330052978,1718973063403,-151.0,0.00021917,2]
[330052979,1718973063412,-151.0,0.00021917,2]
[330052980,1718973063422,-151.0,0.00021917,2]
[330052981,1718973063432,-561.98289708,0.00021917,4]
[330052982,1718973063445,-4297.89,0.00021917,4]
[330052983,1718973063455,-3373.36,0.00021917,4]
[330052984,1718973063465,-1872.66,0.00021917,4]
[330052985,1718973063475,-151.0,0.00021917,2]
[330052986,1718973063486,-10206.0,0.00021918,2]
[330052987,1718973063496,-2180.0,0.00021918,2]
[330052988,1718973063506,-2262.99017345,0.00021962,2]
[330052989,1718973063516,-6410.75356841,0.0002197,2]
[330052990,1718973063527,-443.32163492,0.00022012,2]
[330052991,1718973063537,-151.0,0.00022076,7]
[330052992,1718973063547,-271.371078,0.00022076,7]
[330052993,1718973063558,-271.371069,0.00022076,7]
[330052994,1718973063568,-150.0,0.00022076,2]
[330052995,1718973063579,-2410.0,0.00022076,2]
[330052996,1718973063588,-447.0,0.00022076,2]
[330052997,1718973063598,-1303.0,0.00022076,2]
[330052998,1718973063608,-1982.0,0.00022076,2]
[330052999,1718973063617,-547.0,0.00022076,2]
[330053000,1718973063627,-3198.0,0.00022076,2]
[330053001,1718973063642,-828.596,0.00022076,2]
[330053002,1718973063651,-5164.0,0.00022076,2]
[330053003,1718973063660,-1271.0,0.00022076,2]
[330053004,1718973063669,-5795.0,0.00022076,2]
[330053005,1718973063677,-359.0,0.00022076,2]
[330053006,1718973063687,-290.0,0.00022076,2]
[330053007,1718973063697,-1196.0,0.00022076,2]
[330053008,1718973063707,-1830.0,0.00022076,2]
[330053009,1718973063717,-1000.0,0.00022084,2]
[330053010,1718973063727,-443.32163492,0.0002211,2]
[330053011,1718973063738,-2262.99017345,0.00022116,2]
[330053012,1718973063748,-558.05,0.00022153,4]
[330053013,1718973063758,-6435.861566,0.00022154,2]
[330053014,1718973063767,-230.91994,0.00022154,2]
[330053015,1718973063778,-350.795551,0.00022154,2]
[330053016,1718973063788,-9737.820672,0.00022154,2]
[330053017,1718973063798,-2692.380544,0.00022154,2]
[330053018,1718973063809,-11797.285406,0.00022154,2]
[330053019,1718973063819,-215.144644,0.00022154,2]
[330053020,1718973063830,-151.0,0.00022154,7]
[330053022,1718973063839,-151.0,0.00022154,7]
[330053023,1718973063848,-277.229515,0.00022154,7]
[330053025,1718973063859,-277.229515,0.00022154,7]
[330053026,1718973063868,-150.5,0.00022161,30]
[330053027,1718973063877,-150.5,0.00022161,30]
[330053028,1718973063890,-652.0,0.00022161,30]
[330053029,1718973063899,-359.0,0.00022161,30]
[330053030,1718973063908,-267.22871,0.00022161,7]
[330053031,1718973063917,-155.33834544,0.00022163,2]
[330053032,1718973063927,-500.0,0.0002217,4]
[330053033,1718973063936,-500.0,0.0002217,4]
[330053034,1718973063945,-1118.3,0.0002217,4]
[330053035,1718973063954,-532.43526767,0.0002217,4]
[330053036,1718973063964,-150.5,0.00022171,30]
[330053037,1718973063973,-150.5,0.00022171,30]
[330053038,1718973063983,-652.0,0.00022171,30]
[330053039,1718973063992,-359.0,0.00022171,30]
[330053040,1718973064001,-1675.38,0.0002218,4]
[330053041,1718973064010,-236.34,0.00022181,30]
[330053042,1718973064020,-150.5,0.00022181,30]
[330053043,1718973064029,-150.5,0.00022181,30]
[330053044,1718973064038,-652.0,0.00022181,30]
[330053045,1718973064047,-359.0,0.00022181,30]
[330053046,1718973064057,-200.0,0.00022181,7]
[330053047,1718973064066,-150.0,0.00022189,7]
[330053048,1718973064075,-500.0,0.0002219,4]
[330053049,1718973064084,-500.0,0.0002219,4]
[330053050,1718973064094,-500.83910154,0.0002219,4]
[330053051,1718973064103,-151.0,0.0002219,7]
[330053052,1718973064112,-151.0,0.0002219,7]
[330053053,1718973064122,-1118.3,0.0002219,4]
[330053054,1718973064132,-1118.3,0.0002219,4]
[330053055,1718973064141,-1118.3,0.0002219,4]
[330053056,1718973064151,-1118.3,0.0002219,4]
[330053057,1718973064160,-274.02174666,0.0002219,4]
[330053058,1718973064169,-1172.24,0.0002219,4]
[330053059,1718973064179,-1172.24,0.0002219,4]
[330053060,1718973064188,-1172.24,0.0002219,4]
[330053061,1718973064197,-1172.24,0.0002219,4]
[330053062,1718973064206,-1172.24,0.0002219,4]
[330053063,1718973064215,-1172.24,0.0002219,4]
[330053064,1718973064225,-1675.38,0.0002219,4]
[330053065,1718973064235,-1675.38,0.0002219,4]
[330053066,1718973064244,-1675.38,0.0002219,4]
[330053067,1718973064254,-1675.38,0.0002219,4]
[330053068,1718973064263,-1675.38,0.0002219,4]
[330053069,1718973064272,-1675.38,0.0002219,4]
[330053070,1718973064282,-1675.38,0.0002219,4]
[330053071,1718973064292,-1675.38,0.0002219,4]
[330053072,1718973064301,-1675.38,0.0002219,4]
[330053073,1718973064311,-558.05,0.0002219,4]
[330053074,1718973064320,-558.05,0.0002219,4]
[330053075,1718973064330,-558.05,0.0002219,4]
[330053076,1718973064339,-558.05,0.0002219,4]
[330053077,1718973064350,-558.05,0.0002219,4]
[330053078,1718973064364,-558.05,0.0002219,4]
[330053079,1718973064373,-558.05,0.0002219,4]
[330053080,1718973064385,-558.05,0.0002219,4]
[330053081,1718973064395,-558.05,0.0002219,4]
[330053082,1718973064405,-558.05,0.0002219,4]
[330053083,1718973064413,-558.05,0.0002219,4]
[330053084,1718973064422,-558.25927875,0.0002219,4]
[330053085,1718973064431,-150.0,0.0002219,7]
[330053086,1718973064444,-150.0,0.0002219,7]
[330053087,1718973064453,-1044635.32349267,0.00022191,4]
[330053088,1718973064463,-500.0,0.00022191,4]
[330053089,1718973064472,-500.0,0.00022191,4]
[330053090,1718973064481,-500.0,0.00022191,4]
[330053091,1718973064490,-500.0,0.00022191,4]
[330053092,1718973064500,-500.0,0.00022191,4]
[330053093,1718973064509,-500.0,0.00022191,4]
[330053094,1718973064518,-500.0,0.00022191,4]
[330053095,1718973064528,-500.0,0.00022191,4]
[330053096,1718973064537,-500.0,0.00022191,4]
[330053097,1718973064547,-500.0,0.00022191,4]
[330053098,1718973064556,-500.0,0.00022191,4]
[330053099,1718973064566,-261.40958918,0.00022191,4]
[330053100,1718973064575,-500.0,0.00022191,4]
[330053101,1718973064584,-500.0,0.00022191,4]
[330053102,1718973064594,-500.0,0.00022191,4]
[330053103,1718973064603,-500.0,0.00022191,4]
[330053104,1718973064612,-500.0,0.00022191,4]
[330053105,1718973064623,-500.0,0.00022191,4]
[330053106,1718973064635,-500.0,0.00022191,4]
[330053107,1718973064644,-500.0,0.00022191,4]
[330053108,1718973064653,-500.0,0.00022191,4]
[330053109,1718973064665,-500.0,0.00022191,4]
[330053110,1718973064674,-500.0,0.00022191,4]
[330053111,1718973064683,-500.0,0.00022191,4]
[330053112,1718973064692,-500.0,0.00022191,4]
[330053113,1718973064701,-697.45,0.00022191,4]
[330053114,1718973064710,-500.0,0.00022191,4]
[330053115,1718973064719,-500.0,0.00022191,4]
[330053116,1718973064729,-602.05453264,0.00022191,4]
[330053117,1718973064738,-500.0,0.00022191,4]
[330053118,1718973064747,-500.0,0.00022191,4]
[330053119,1718973064756,-500.0,0.00022191,4]
[330053120,1718973064766,-500.0,0.00022191,4]
[330053121,1718973064775,-723.07,0.00022191,4]
[330053122,1718973064784,-500.0,0.00022191,4]
[330053123,1718973064793,-585.73650554,0.00022191,4]
[330053124,1718973064803,-500.0,0.00022191,4]
[330053125,1718973064811,-500.0,0.00022191,4]
[330053126,1718973064821,-526.05465697,0.00022191,4]
[330053127,1718973064830,-500.0,0.00022191,4]